bitfinex-derivatives/quotes_BTCF0:USTF0_20260106
["timestamp","ask_amount","ask_price","bid_price","bid_amount"]
[1767719194663,0.02348878,92818.0,92797.0,0.09172]
[1767719194859,0.010777,92818.0,92797.0,0.09172]
[1767719195060,0.00215474,92819.0,92798.0,0.010779]
[1767719195262,0.00215474,92819.0,92797.0,0.09172]
[1767719195263,0.01293174,92819.0,92797.0,0.09172]
[1767719195569,0.00215474,92819.0,92798.0,0.010779]
[1767719195765,0.01523786,92819.0,92797.0,0.18476896]
[1767719195958,0.01523786,92819.0,92798.0,0.09304896]
[1767719196368,0.12579606,92815.0,92791.0,0.10382896]
[1767719196564,0.01523786,92819.0,92786.0,0.010781]
[1767719196565,0.026747,92808.0,92786.0,0.010781]
[1767719196769,0.12579606,92808.0,92787.0,0.09172]
[1767719197462,0.02665414,92814.0,92787.0,0.18476896]
[1767719197668,0.010778,92810.0,92788.0,0.09304896]
[1767719198370,0.010778,92813.0,92789.0,0.01078]
[1767719198557,0.010777,92816.0,92793.0,0.10382896]
[1767719198969,0.14044741,92819.0,92793.0,0.09304896]
[1767719199469,0.010778,92814.0,92793.0,0.09304896]
[1767719199660,0.010777,92817.0,92793.0,0.09304896]
[1767719199862,0.11428692,92819.0,92800.0,0.010779]
[1767719200060,0.010777,92818.0,92798.0,0.09168]
[1767719200261,0.010777,92818.0,92798.0,0.17672896]
[1767719200668,0.010778,92813.0,92798.0,0.08368]
[1767719200872,0.12431725,92807.0,92794.0,0.09168]
[1767719201266,0.09904906,92807.0,92794.0,0.09168]
[1767719201459,0.03604619,92813.0,92794.0,0.09168]
[1767719202058,0.010778,92810.0,92794.0,0.09168]
[1767719202269,0.02462656,92805.0,92784.0,0.09304896]
[1767719202463,0.010779,92802.0,92785.0,0.09168]
[1767719203163,0.010779,92802.0,92784.0,0.09304896]
[1767719203363,0.010779,92802.0,92785.0,0.09168]
[1767719203762,0.09168,92813.0,92777.0,0.09304896]
[1767719203763,0.02437158,92803.0,92777.0,0.09304896]
[1767719203968,0.01078,92797.0,92778.0,0.09168]
[1767719204365,0.12293458,92810.0,92784.0,0.09304896]
[1767719204564,0.010779,92801.0,92784.0,0.09304896]
[1767719205173,0.010779,92804.0,92784.0,0.09304896]
[1767719205673,0.010779,92804.0,92785.0,0.136353]
[1767719206272,0.027048,92807.0,92785.0,0.136353]
[1767719206566,0.01627,92807.0,92785.0,0.136353]
[1767719207477,0.01627,92807.0,92785.0,0.09304896]
[1767719207863,0.01627,92807.0,92785.0,0.10382996]
[1767719208075,0.01627,92807.0,92785.0,0.04330404]
[1767719208264,0.01627,92807.0,92793.0,0.01078]
[1767719208460,0.01627,92807.0,92791.0,0.13498404]
[1767719208668,0.010777,92818.0,92798.0,0.04330404]
[1767719208973,0.09168,92820.0,92801.0,0.010779]
[1767719209578,0.03856903,92828.0,92803.0,0.04330404]
[1767719209579,0.010777,92822.0,92803.0,0.04330404]
[1767719209778,0.09168,92827.0,92803.0,0.04330404]
[1767719210166,0.010777,92818.0,92803.0,0.04330404]
[1767719210368,0.010777,92816.0,92803.0,0.04330404]
[1767719211574,0.010777,92816.0,92802.0,0.09304896]
[1767719211775,0.0385827,92823.0,92796.0,0.09304896]
[1767719212077,0.010777,92815.0,92797.0,0.09168]
[1767719212274,0.09904906,92820.0,92796.0,0.09304896]
[1767719212473,0.03810349,92806.0,92781.0,0.09304896]
[1767719212672,0.010779,92798.0,92781.0,0.09304896]
[1767719212975,0.010779,92798.0,92781.0,0.09168]
[1767719213180,0.010779,92798.0,92777.0,0.010782]
[1767719213375,0.010779,92801.0,92781.0,0.010781]
[1767719213565,0.010778,92807.0,92786.0,0.010781]
[1767719213770,0.010779,92803.0,92786.0,0.09304896]
[1767719213967,0.010779,92806.0,92786.0,0.09304896]
[1767719214166,0.09168,92815.0,92791.0,0.04330404]
[1767719214371,0.09168,92815.0,92797.0,0.09304896]
[1767719214372,0.010778,92813.0,92797.0,0.09304896]
[1767719214771,0.010778,92814.0,92797.0,0.09304896]
[1767719215582,0.09168,92815.0,92797.0,0.09304896]
[1767719215885,0.09168,92815.0,92782.0,0.010781]
[1767719215886,0.010778,92807.0,92795.0,0.09168]
[1767719216984,0.010779,92805.0,92795.0,0.09168]
[1767719217174,0.010778,92807.0,92795.0,0.09168]
[1767719217374,0.010778,92807.0,92795.0,0.06268]
[1767719217678,0.010779,92804.0,92793.0,0.09168]
[1767719218079,0.010778,92807.0,92793.0,0.09168]
[1767719219273,0.010779,92803.0,92793.0,0.09168]
[1767719220383,0.010779,92803.0,92776.0,0.44392]
[1767719220384,0.13457464,92799.0,92780.0,0.09168]
[1767719220580,0.09904906,92799.0,92780.0,0.09168]
[1767719220975,0.03505654,92804.0,92780.0,0.09168]
[1767719221177,0.09904906,92814.0,92789.0,0.09304896]
[1767719221384,0.09904906,92814.0,92780.0,0.09168]
[1767719221385,0.010777,92820.0,92797.0,0.14027832]
[1767719221578,0.00215474,92819.0,92805.0,0.10925767]
[1767719221786,0.00215474,92819.0,92807.0,0.09847867]
[1767719221989,0.0954446,92832.0,92812.0,0.010778]
[1767719222194,0.01235724,92832.0,92814.0,0.09847867]
[1767719222489,0.01235724,92832.0,92813.0,0.04179965]
[1767719222490,0.0954446,92826.0,92813.0,0.01965388]
[1767719222690,0.0954446,92814.0,92813.0,0.0039595]
[1767719222883,0.13366703,92821.0,92813.0,0.0039595]
[1767719223089,0.09585613,92814.0,92813.0,0.0039595]
[1767719223480,0.13366703,92822.0,92813.0,0.0039595]
[1767719223481,0.09585613,92816.0,92813.0,0.0039595]
[1767719223886,0.13366703,92824.0,92814.0,0.010778]
[1767719224087,0.010775,92836.0,92802.0,0.010779]
[1767719224088,0.18759507,92838.0,92816.0,0.010777]
[1767719224281,0.18759507,92838.0,92818.0,0.010777]
[1767719224487,0.18759507,92838.0,92816.0,0.09168]
[1767719224488,0.18759507,92838.0,92817.0,0.09277161]
[1767719224792,0.01259763,92841.0,92823.0,0.09277161]
[1767719224974,0.09168,92842.0,92816.0,0.09168]
[1767719224975,0.010775,92837.0,92816.0,0.13482711]
[1767719225175,0.09168,92842.0,92816.0,0.09168]
[1767719225176,0.010775,92836.0,92816.0,0.09168]
[1767719225390,0.01271196,92841.0,92819.0,0.010777]
[1767719225583,0.010774,92841.0,92819.0,0.010777]
[1767719225788,0.010775,92838.0,92818.0,0.13591872]
[1767719225987,0.010775,92838.0,92818.0,0.12691872]
[1767719226176,0.010775,92838.0,92818.0,0.08377161]
[1767719226884,0.010775,92836.0,92818.0,0.08377161]
[1767719228184,0.01253345,92841.0,92818.0,0.08377161]
[1767719228185,0.010776,92831.0,92818.0,0.08377161]
[1767719228387,0.010775,92832.0,92818.0,0.09168]
[1767719228878,0.04480632,92836.0,92819.0,0.13591872]
[1767719229083,0.010775,92839.0,92822.0,0.13591872]
[1767719229285,0.010775,92833.0,92818.0,0.09168]
[1767719229593,0.10591517,92836.0,92818.0,0.09168]
[1767719229982,0.010775,92834.0,92818.0,0.09168]
[1767719230479,0.09514017,92836.0,92818.0,0.09168]
[1767719231494,0.010775,92833.0,92818.0,0.09168]
[1767719232090,0.01264778,92841.0,92809.0,0.09168]
[1767719232091,0.010777,92817.0,92809.0,0.09168]
[1767719232290,0.010777,92815.0,92800.0,0.09168]
[1767719232492,0.010777,92815.0,92780.0,0.010781]
[1767719232493,0.010778,92809.0,92791.0,0.04314711]
[1767719232692,0.010778,92809.0,92792.0,0.09168]
[1767719233079,0.23162649,92819.0,92791.0,0.04314711]
[1767719233080,0.010778,92806.0,92791.0,0.04314711]
[1767719233286,0.09514017,92811.0,92791.0,0.09168]
[1767719233591,0.010778,92809.0,92790.0,0.09168]
[1767719233791,0.010778,92809.0,92780.0,0.09277161]
[1767719233792,0.09514017,92804.0,92780.0,0.09277161]
[1767719233992,0.09514017,92804.0,92781.0,0.09168]
[1767719234582,0.010779,92800.0,92781.0,0.09168]
[1767719234787,0.09514017,92804.0,92781.0,0.09168]
[1767719234996,0.09514017,92804.0,92766.0,0.22144]
[1767719234997,0.01078,92792.0,92769.0,0.010783]
[1767719235297,0.09514017,92791.0,92770.0,0.09168]
[1767719235699,0.10592017,92791.0,92770.0,0.09168]
[1767719236183,0.09514017,92791.0,92770.0,0.09168]
[1767719236399,0.10246,92797.0,92773.0,0.14670072]
[1767719236695,0.09168,92797.0,92773.0,0.13591872]
[1767719236886,0.09168,92797.0,92770.0,0.09168]
[1767719236887,0.09514017,92794.0,92770.0,0.09168]
[1767719237088,0.010781,92788.0,92770.0,0.09168]
[1767719237287,0.09514017,92794.0,92771.0,0.04314711]
[1767719237485,0.18682017,92797.0,92772.0,0.13591872]
[1767719237792,0.01078,92792.0,92772.0,0.13591872]
[1767719238182,0.01078,92795.0,92772.0,0.13591872]
[1767719239301,0.01078,92791.0,92772.0,0.13591872]
[1767719239590,0.01078,92795.0,92772.0,0.13591872]
[1767719239796,0.01078,92795.0,92774.0,0.13591872]
[1767719240195,0.010779,92801.0,92781.0,0.13591872]
[1767719240397,0.010779,92804.0,92782.0,0.13591872]
[1767719240591,0.09168,92803.0,92786.0,0.09277161]
[1767719240788,0.09168,92803.0,92789.0,0.09277161]
[1767719241594,0.09168,92803.0,92790.0,0.04314711]
[1767719241797,0.102458,92810.0,92790.0,0.04314711]
[1767719242197,0.04480632,92822.0,92796.0,0.01078]
[1767719242198,0.010777,92821.0,92796.0,0.01078]
[1767719242503,0.09168,92822.0,92801.0,0.04314711]
[1767719242686,0.3187,92833.0,92796.0,0.09168]
[1767719242687,0.04480632,92834.0,92807.0,0.04314711]
[1767719242891,0.010775,92832.0,92808.0,0.010778]
[1767719243101,0.010776,92831.0,92807.0,0.04314711]
[1767719243297,0.010776,92831.0,92808.0,0.010778]
[1767719243495,0.010776,92831.0,92807.0,0.04314711]
[1767719243696,0.010776,92831.0,92808.0,0.09277161]
[1767719244108,0.010776,92831.0,92808.0,0.10354961]
[1767719244401,0.09168,92833.0,92813.0,0.09277161]
[1767719245197,0.010776,92831.0,92813.0,0.09277161]
[1767719245385,0.09168,92833.0,92813.0,0.09277161]
[1767719246189,0.010776,92831.0,92813.0,0.09277161]
[1767719246705,0.13994649,92854.0,92827.0,0.09277161]
[1767719247003,0.13994649,92852.0,92828.0,0.09168]
[1767719247386,0.010774,92849.0,92828.0,0.09168]
[1767719247587,0.13994649,92852.0,92828.0,0.09168]
[1767719247793,0.010773,92851.0,92828.0,0.102456]
[1767719248603,0.01286297,92854.0,92832.0,0.09277161]
[1767719248803,0.01286297,92854.0,92828.0,0.09168]
[1767719248804,0.09514017,92859.0,92836.0,0.09277161]
[1767719249098,0.010773,92857.0,92831.0,0.010775]
[1767719249404,0.010773,92857.0,92831.0,0.05392211]
[1767719249595,0.010773,92854.0,92831.0,0.04314711]
[1767719249790,0.13994649,92858.0,92831.0,0.04314711]
[1767719250003,0.010774,92849.0,92828.0,0.09168]
[1767719251198,0.010774,92849.0,92825.0,0.04314711]
[1767719251199,0.010773,92849.0,92825.0,0.13591872]
[1767719251412,0.09226003,92845.0,92826.0,0.09168]
[1767719251601,0.09226003,92845.0,92827.0,0.09168]
[1767719251794,0.09226003,92845.0,92828.0,0.09168]
[1767719251994,0.010774,92846.0,92823.0,0.09049289]
[1767719252302,0.01286926,92859.0,92766.0,0.96589664]
[1767719252303,0.04427059,92858.0,92833.0,0.09049289]
[1767719252494,0.01286926,92859.0,92836.0,0.09049289]
[1767719252694,0.010772,92858.0,92837.0,0.09168]
[1767719252894,0.010772,92858.0,92837.0,0.18217289]
[1767719253296,0.010772,92858.0,92817.0,0.010777]
[1767719253297,0.13653062,92840.0,92817.0,0.010777]
[1767719253491,0.010775,92838.0,92815.0,0.09049289]
[1767719253697,0.010775,92838.0,92788.0,0.06061478]
[1767719253698,0.09226003,92835.0,92816.0,0.09164]
[1767719254000,0.010776,92830.0,92817.0,0.09164]
[1767719254199,0.010775,92833.0,92818.0,0.08264]
[1767719254504,0.010775,92833.0,92819.0,0.09164]
[1767719255304,0.010775,92837.0,92819.0,0.09164]
[1767719255509,0.13653062,92842.0,92819.0,0.09164]
[1767719255802,0.010775,92836.0,92819.0,0.09164]
[1767719256004,0.102413,92852.0,92820.0,0.10126989]
[1767719256005,0.010774,92844.0,92820.0,0.10126989]
[1767719256201,0.010774,92844.0,92820.0,0.14879368]
[1767719256401,0.010774,92844.0,92822.0,0.09049289]
[1767719256602,0.010774,92841.0,92822.0,0.09049289]
[1767719257011,0.13653062,92847.0,92822.0,0.09049289]
[1767719257211,0.13653062,92846.0,92822.0,0.09049289]
[1767719257512,0.09226003,92845.0,92822.0,0.09049289]
[1767719258007,0.010775,92834.0,92819.0,0.09164]
[1767719258313,0.13653062,92836.0,92809.0,0.04752379]
[1767719258610,0.13653062,92836.0,92810.0,0.09164]
[1767719259205,0.010776,92830.0,92809.0,0.13801668]
[1767719259412,0.010775,92833.0,92810.0,0.09164]
[1767719259610,0.010775,92833.0,92810.0,0.10127089]
[1767719259809,0.010776,92830.0,92811.0,0.09164]
[1767719260309,0.13653062,92836.0,92810.0,0.09049289]
[1767719260310,0.010776,92828.0,92810.0,0.09049289]
[1767719260611,0.13653062,92836.0,92804.0,0.010779]
[1767719260612,0.010776,92827.0,92804.0,0.010779]
[1767719260915,0.09226003,92838.0,92814.0,0.09049289]
[1767719261102,0.09226003,92838.0,92815.0,0.09164]
[1767719261303,0.010776,92830.0,92815.0,0.09164]
[1767719262004,0.010775,92833.0,92815.0,0.07964]
[1767719262511,0.09226003,92838.0,92815.0,0.07964]
[1767719264015,0.13653062,92836.0,92815.0,0.07964]
[1767719264704,0.010776,92830.0,92815.0,0.07964]
[1767719265207,0.13653062,92836.0,92815.0,0.07964]
[1767719265916,0.010775,92835.0,92815.0,0.090417]
[1767719266115,0.09164,92842.0,92819.0,0.04752379]
[1767719266308,0.010774,92841.0,92825.0,0.09049289]
[1767719266708,0.010774,92844.0,92826.0,0.09164]
[1767719267008,0.010774,92842.0,92826.0,0.09164]
[1767719268417,0.010774,92842.0,92826.0,0.18213289]
[1767719268719,0.18390003,92852.0,92827.0,0.09049289]
[1767719269110,0.22817062,92852.0,92827.0,0.09049289]
[1767719269809,0.010774,92844.0,92827.0,0.08649289]
[1767719270409,0.010774,92847.0,92828.0,0.04752379]
[1767719270710,0.09164,92852.0,92826.0,0.09164]
[1767719270711,0.010774,92843.0,92826.0,0.09164]
[1767719271311,0.04427059,92850.0,92826.0,0.09164]
[1767719271507,0.09164,92852.0,92809.0,0.010778]
[1767719271508,0.010775,92833.0,92809.0,0.010778]
[1767719271719,0.010775,92833.0,92811.0,0.09049289]
[1767719271910,0.010775,92836.0,92813.0,0.13801668]
[1767719272110,0.13653062,92837.0,92802.0,0.010779]
[1767719272111,0.010775,92834.0,92815.0,0.09049289]
[1767719272315,0.09226003,92837.0,92816.0,0.09164]
[1767719272509,0.010775,92836.0,92818.0,0.09049289]
[1767719272714,0.04427059,92831.0,92818.0,0.09164]
[1767719272913,0.09226003,92829.0,92818.0,0.09164]
[1767719273416,0.010776,92829.0,92817.0,0.09164]
[1767719273611,0.010776,92827.0,92817.0,0.09164]
[1767719273925,0.010776,92830.0,92817.0,0.09164]
[1767719274318,0.010776,92830.0,92805.0,0.010778]
[1767719274517,0.010776,92830.0,92806.0,0.09164]
[1767719274719,0.010776,92830.0,92808.0,0.04752379]
[1767719275022,0.010776,92827.0,92808.0,0.04752379]
[1767719275221,0.010776,92825.0,92809.0,0.09164]
[1767719275430,0.010776,92828.0,92809.0,0.09164]
[1767719276306,0.010776,92828.0,92807.0,0.09049289]
[1767719276513,0.13653062,92828.0,92803.0,0.04752379]
[1767719276713,0.010775,92838.0,92800.0,0.09049289]
[1767719276714,0.010777,92820.0,92804.0,0.09164]
[1767719276920,0.14730762,92823.0,92804.0,0.09164]
[1767719277222,0.10303703,92823.0,92804.0,0.09164]
[1767719277420,0.09226003,92823.0,92804.0,0.07964]
[1767719277719,0.010777,92822.0,92801.0,0.04356887]
[1767719277920,0.09226003,92823.0,92802.0,0.010779]
[1767719277921,0.10303603,92823.0,92802.0,0.010779]
[1767719278324,0.10303603,92823.0,92802.0,0.05434787]
[1767719278325,0.09226003,92823.0,92802.0,0.05434787]
[1767719278525,0.010776,92826.0,92805.0,0.09092459]
[1767719278716,0.09164,92832.0,92810.0,0.04356887]
[1767719279226,0.010776,92824.0,92810.0,0.04356887]
[1767719279726,0.09164,92832.0,92811.0,0.09164]
[1767719279918,0.010776,92826.0,92811.0,0.09164]
[1767719280609,0.09920708,92831.0,92811.0,0.09164]
[1767719280610,0.010776,92829.0,92811.0,0.09164]
[1767719280816,0.010777,92819.0,92808.0,0.09164]
[1767719281222,0.010777,92822.0,92808.0,0.09164]
[1767719281617,0.09164,92832.0,92811.0,0.0452809]
[1767719281820,0.09164,92832.0,92813.0,0.0452809]
[1767719282317,0.09164,92832.0,92812.0,0.09946902]
[1767719283110,0.010776,92831.0,92812.0,0.14474992]
[1767719283311,0.09164,92832.0,92815.0,0.14474992]
[1767719283516,0.09164,92832.0,92808.0,0.09164]
[1767719283517,0.010776,92827.0,92808.0,0.09164]
[1767719284317,0.09489556,92831.0,92811.0,0.010778]
[1767719284610,0.09489556,92831.0,92808.0,0.09164]
[1767719284611,0.09489556,92830.0,92808.0,0.102418]
[1767719284811,0.09489556,92830.0,92810.0,0.010778]
[1767719285431,0.010776,92826.0,92808.0,0.09164]
[1767719285827,0.010776,92829.0,92811.0,0.0452809]
[1767719286128,0.010776,92829.0,92808.0,0.14474992]
[1767719286324,0.010777,92820.0,92802.0,0.14474992]
[1767719286623,0.09489556,92817.0,92801.0,0.09164]
[1767719286822,0.09489556,92817.0,92798.0,0.09164]
[1767719287022,0.14078576,92823.0,92801.0,0.010779]
[1767719287923,0.09489556,92823.0,92801.0,0.11024802]
[1767719288131,0.010776,92825.0,92798.0,0.09164]
[1767719288132,0.010776,92825.0,92804.0,0.14474992]
[1767719288319,0.010776,92825.0,92809.0,0.0452809]
[1767719289020,0.09489556,92830.0,92803.0,0.0452809]
[1767719289224,0.09489556,92828.0,92803.0,0.0452809]
[1767719289422,0.010776,92824.0,92803.0,0.0452809]
[1767719289926,0.010776,92824.0,92803.0,0.14474992]
[1767719290314,0.010777,92817.0,92798.0,0.0452809]
[1767719290516,0.010777,92817.0,92793.0,0.09946902]
[1767719290517,0.09489556,92819.0,92793.0,0.09946902]
[1767719290824,0.09489556,92819.0,92792.0,0.0452809]
[1767719290825,0.01078,92794.0,92771.0,0.09946902]
[1767719291025,0.10567456,92798.0,92773.0,0.14474992]
[1767719291214,0.09489556,92798.0,92774.0,0.14474992]
[1767719291419,0.09489556,92798.0,92775.0,0.14474992]
[1767719291625,0.09489556,92798.0,92775.0,0.09946902]
[1767719291835,0.09489556,92798.0,92763.0,0.09168]
[1767719291836,0.010781,92782.0,92763.0,0.09168]
[1767719292129,0.010781,92785.0,92763.0,0.09168]
[1767719292319,0.010781,92785.0,92761.0,0.09946902]
[1767719292622,0.010781,92785.0,92762.0,0.09168]
[1767719293018,0.10567656,92786.0,92762.0,0.09168]
[1767719293214,0.14078576,92795.0,92765.0,0.0452809]
[1767719293422,0.14078576,92795.0,92773.0,0.0452809]
[1767719293423,0.09168,92794.0,92773.0,0.0452809]
[1767719293616,0.01078,92790.0,92773.0,0.0452809]
[1767719293821,0.01078,92790.0,92773.0,0.0402809]
[1767719294320,0.02470027,92790.0,92773.0,0.0402809]
[1767719294631,0.010781,92788.0,92773.0,0.0402809]
[1767719294931,0.01392027,92790.0,92773.0,0.0402809]
[1767719295119,0.01078,92791.0,92773.0,0.0402809]
[1767719295716,0.02442424,92791.0,92773.0,0.0402809]
[1767719296326,0.010781,92788.0,92773.0,0.0402809]
[1767719296631,0.01364424,92791.0,92772.0,0.09946902]
[1767719296632,0.01078,92791.0,92772.0,0.09946902]
[1767719296924,0.01078,92791.0,92767.0,0.0452809]
[1767719296925,0.010781,92783.0,92767.0,0.09168]
[1767719297433,0.09489556,92784.0,92767.0,0.09168]
[1767719297626,0.0458902,92790.0,92767.0,0.09168]
[1767719297828,0.01392988,92791.0,92774.0,0.0452809]
[1767719298027,0.09168,92790.0,92776.0,0.0452809]
[1767719298330,0.09168,92790.0,92768.0,0.14474992]
[1767719298516,0.14078576,92787.0,92767.0,0.09168]
[1767719298719,0.10567656,92786.0,92767.0,0.09168]
[1767719298933,0.09489556,92786.0,92767.0,0.09168]
[1767719299130,0.01078,92789.0,92767.0,0.09168]
[1767719299932,0.09168,92790.0,92767.0,0.09168]
[1767719300231,0.01078,92789.0,92767.0,0.09168]
[1767719300432,0.010781,92786.0,92767.0,0.09168]
[1767719300930,0.010781,92784.0,92764.0,0.14474992]
[1767719301233,0.010781,92784.0,92765.0,0.14474992]
[1767719301527,0.010781,92782.0,92760.0,0.14474992]
[1767719301832,0.14078576,92787.0,92761.0,0.09168]
[1767719302023,0.14078576,92787.0,92761.0,0.19114902]
[1767719302224,0.09489556,92787.0,92763.0,0.09946902]
[1767719302423,0.10246,92789.0,92763.0,0.09946902]
[1767719302930,0.0458902,92800.0,92774.0,0.09946902]
[1767719303135,0.09168,92801.0,92783.0,0.09946902]
[1767719303334,0.09168,92801.0,92785.0,0.09946902]
[1767719303529,0.09489556,92823.0,92791.0,0.09946902]
[1767719303835,0.11802199,92826.0,92803.0,0.09946902]
[1767719303836,0.09168,92825.0,92803.0,0.09946902]
[1767719304134,0.09168,92825.0,92807.0,0.09946902]
[1767719304330,0.09168,92825.0,92808.0,0.09946902]
[1767719305228,0.09168,92825.0,92812.0,0.010778]
[1767719305528,0.09489556,92837.0,92809.0,0.09946902]
[1767719305529,0.01382826,92828.0,92810.0,0.010778]
[1767719305733,0.09168,92831.0,92810.0,0.010778]
[1767719305937,0.01425522,92831.0,92810.0,0.13792733]
[1767719306229,0.09168,92831.0,92815.0,0.12714933]
[1767719306530,0.09168,92831.0,92801.0,0.010779]
[1767719306531,0.09489556,92827.0,92801.0,0.010779]
[1767719306836,0.09489556,92826.0,92802.0,0.09168]
[1767719307027,0.09168,92831.0,92807.0,0.12667019]
[1767719307218,0.09168,92831.0,92802.0,0.09168]
[1767719307219,0.09168,92831.0,92814.0,0.09946902]
[1767719309427,0.09168,92831.0,92814.0,0.08846902]
[1767719309628,0.05313,92836.0,92814.0,0.08846902]
[1767719310533,0.010775,92835.0,92814.0,0.08846902]
[1767719311337,0.05313,92836.0,92814.0,0.08846902]
[1767719311637,0.05313,92836.0,92815.0,0.010777]
[1767719311638,0.06690307,92836.0,92815.0,0.010777]
[1767719311833,0.06690307,92836.0,92814.0,0.08846902]
[1767719312023,0.14700198,92832.0,92813.0,0.09168]
[1767719312228,0.10641504,92830.0,92804.0,0.010779]
[1767719312436,0.09563904,92828.0,92805.0,0.09168]
[1767719312837,0.09563904,92828.0,92804.0,0.102459]
[1767719313138,0.13622698,92835.0,92810.0,0.13326017]
[1767719313329,0.06690307,92836.0,92791.0,0.0222365]
[1767719313330,0.04058794,92833.0,92791.0,0.0222365]
[1767719313531,0.09563904,92813.0,92792.0,0.09168]
[1767719313733,0.13622698,92821.0,92798.0,0.010779]
[1767719314028,0.10641604,92820.0,92799.0,0.09168]
[1767719314334,0.06690307,92836.0,92799.0,0.09168]
[1767719314335,0.10641604,92818.0,92799.0,0.09168]
[1767719314638,0.09563904,92812.0,92799.0,0.09168]
[1767719315141,0.010778,92811.0,92799.0,0.09168]
[1767719315342,0.010778,92811.0,92799.0,0.01386179]
[1767719315640,0.09563904,92812.0,92799.0,0.01386179]
[1767719315837,0.010778,92810.0,92799.0,0.01386179]
[1767719316135,0.010778,92810.0,92786.0,0.12189085]
[1767719316136,0.010778,92807.0,92786.0,0.09969944]
[1767719316343,0.09563904,92809.0,92792.0,0.09168]
[1767719316941,0.010778,92810.0,92766.0,0.02507229]
[1767719316942,0.09563904,92795.0,92766.0,0.02507229]
[1767719317133,0.09563904,92788.0,92765.0,0.09969944]
[1767719317338,0.09563904,92787.0,92766.0,0.08468]
[1767719317837,0.10642004,92786.0,92767.0,0.09168]
[1767719318039,0.0934836,92786.0,92762.0,0.010783]
[1767719318245,0.05136894,92784.0,92763.0,0.09168]
[1767719318440,0.010781,92780.0,92757.0,0.09969944]
[1767719318635,0.01078,92795.0,92752.0,0.09168]
[1767719318636,0.04058794,92774.0,92752.0,0.09168]
[1767719319936,0.05487369,92774.0,92752.0,0.09168]
[1767719320138,0.05487369,92774.0,92746.0,0.09969944]
[1767719320139,0.010783,92769.0,92746.0,0.09969944]
[1767719320342,0.010783,92770.0,92746.0,0.09969944]
[1767719320644,0.10642204,92771.0,92746.0,0.09969944]
[1767719321335,0.13622698,92763.0,92738.0,0.010786]
[1767719321530,0.13622698,92763.0,92739.0,0.09168]
[1767719321737,0.13622698,92763.0,92738.0,0.010786]
[1767719322045,0.01393578,92774.0,92741.0,0.12388519]
[1767719322046,0.14700998,92771.0,92741.0,0.12388519]
[1767719322244,0.010783,92768.0,92741.0,0.12388519]
[1767719322647,0.09563904,92770.0,92741.0,0.12388519]
[1767719322945,0.10642204,92769.0,92741.0,0.12388519]
[1767719323446,0.10642204,92769.0,92742.0,0.09168]
[1767719324045,0.01317675,92774.0,92743.0,0.09969944]
[1767719324251,0.18731904,92777.0,92754.0,0.010784]
[1767719324548,0.09563904,92775.0,92750.0,0.010785]
[1767719325140,0.09563904,92775.0,92749.0,0.09969944]
[1767719325351,0.01339517,92775.0,92753.0,0.09969944]
[1767719325551,0.09168,92777.0,92753.0,0.09969944]
[1767719325850,0.09168,92777.0,92754.0,0.010784]
[1767719326151,0.09168,92777.0,92740.0,0.12686373]
[1767719326152,0.09168,92784.0,92761.0,0.09969944]
[1767719326457,0.09168,92784.0,92764.0,0.010783]
[1767719326647,0.10500372,92784.0,92767.0,0.010783]
[1767719327241,0.10500372,92784.0,92770.0,0.010783]
[1767719327242,0.09168,92784.0,92770.0,0.010783]
[1767719327445,0.01346622,92789.0,92773.0,0.010782]
[1767719327648,0.09168,92792.0,92780.0,0.010781]
[1767719327946,0.01323184,92797.0,92780.0,0.010781]
[1767719328149,0.09563904,92805.0,92789.0,0.01078]
[1767719328345,0.09172,92810.0,92789.0,0.01078]
[1767719328652,0.1053327,92810.0,92789.0,0.01078]
[1767719328850,0.1053327,92810.0,92793.0,0.01078]
[1767719328851,0.09172,92810.0,92793.0,0.01078]
[1767719330555,0.09172,92810.0,92789.0,0.01078]
[1767719331153,0.09172,92810.0,92791.0,0.01078]
[1767719332347,0.09172,92810.0,92798.0,0.010779]
[1767719332840,0.027857,92821.0,92796.0,0.11833968]
[1767719332841,0.09168,92820.0,92796.0,0.11833968]
[1767719333041,0.09168,92820.0,92804.0,0.010779]
[1767719333341,0.09168,92820.0,92799.0,0.010779]
[1767719333743,0.10484532,92820.0,92801.0,0.010779]
[1767719333957,0.10484532,92820.0,92798.0,0.11047844]
[1767719334447,0.00215474,92819.0,92798.0,0.11047844]
[1767719334656,0.00215474,92819.0,92802.0,0.010779]
[1767719334843,0.00215474,92819.0,92798.0,0.09969944]
[1767719334844,0.00215474,92819.0,92807.0,0.010778]
[1767719335740,0.01708,92821.0,92811.0,0.010778]
[1767719336044,0.14952621,92831.0,92801.0,0.09969944]
[1767719336246,0.09563904,92828.0,92801.0,0.09969944]
[1767719336751,0.09563904,92827.0,92803.0,0.010779]
[1767719337149,0.010776,92825.0,92801.0,0.11047844]
[1767719337652,0.13545906,92827.0,92803.0,0.010779]
[1767719337843,0.09493959,92825.0,92801.0,0.09969944]
[1767719338045,0.09493959,92825.0,92780.0,0.010781]
[1767719338046,0.09493959,92813.0,92794.0,0.09168]
[1767719338242,0.010778,92812.0,92794.0,0.09168]
[1767719338443,0.10571759,92812.0,92794.0,0.09168]
[1767719338851,0.13475961,92809.0,92785.0,0.010781]
[1767719339149,0.010776,92830.0,92786.0,0.09168]
[1767719339150,0.09493959,92801.0,92786.0,0.09168]
[1767719339357,0.09493959,92801.0,92780.0,0.09168]
[1767719339553,0.09493959,92801.0,92782.0,0.010781]
[1767719339748,0.09168,92805.0,92782.0,0.010781]
[1767719340252,0.09168,92805.0,92780.0,0.09168]
[1767719340253,0.09168,92814.0,92793.0,0.01078]
[1767719340454,0.18661959,92816.0,92795.0,0.01078]
[1767719340749,0.18661959,92816.0,92792.0,0.09440996]
[1767719340750,0.19739659,92816.0,92792.0,0.09218996]
[1767719340951,0.19739659,92816.0,92791.0,0.01545397]
[1767719340952,0.09493959,92802.0,92779.0,0.09168]
[1767719341150,0.010779,92798.0,92780.0,0.09168]
[1767719341345,0.010779,92801.0,92780.0,0.09168]
[1767719341546,0.10881998,92801.0,92780.0,0.09168]
[1767719341744,0.09168,92806.0,92772.0,0.010782]
[1767719341745,0.04043083,92797.0,92772.0,0.010782]
[1767719342053,0.04043083,92797.0,92702.0,0.1791]